fUST/lending_fUST_20260128
["ID","MTS","AMOUNT","RATE_DAILY","PERIOD"]
[403821049,1769562247628,500.0,0.00034965,120]
[403821050,1769562247906,500.0,0.00034965,120]
[403821051,1769562248012,500.0,0.00034965,120]
[403821052,1769562252392,500.0,0.00034965,120]
[403821053,1769562253056,500.0,0.00034965,120]
[403821054,1769562253443,501.90653173,0.00034965,120]
[403821055,1769562254300,500.0,0.00034965,120]
[403821056,1769562254636,500.0,0.00034965,120]
[403821057,1769562255018,500.0,0.00034965,120]
[403821058,1769562256600,500.0,0.00034965,120]
[403821059,1769562257811,508.35932741,0.00034965,120]
[403821060,1769562259937,500.0,0.00034965,120]
[403821061,1769562260445,500.0,0.00034965,120]
[403821062,1769562261464,500.0,0.00034965,120]
[403821063,1769562263884,500.0,0.00034965,120]
[403821064,1769562265163,234.58240261,0.00034965,120]
[403821065,1769562265460,500.0,0.00034965,120]
[403821066,1769562266789,500.0,0.00034965,120]
[403821067,1769562267268,500.0,0.00034965,120]
[403821068,1769562267398,500.0,0.00034965,120]
[403821069,1769562269308,500.0,0.00034965,120]
[403821070,1769562272102,500.0,0.00034965,120]
[403821071,1769562272915,500.0,0.00034965,120]
[403821072,1769562273452,500.0,0.00034965,120]
[403821073,1769562274697,500.0,0.00034965,120]
[403821074,1769562277275,416.96946471,0.00034965,120]
[403821075,1769562277388,500.0,0.00034965,120]
[403821076,1769562278487,500.0,0.00034965,120]
[403821077,1769562279208,500.0,0.00034965,120]
[403821078,1769562280031,514.04612336,0.00034965,120]
[403821079,1769562281104,999.298191,0.00011071,2]
[403821080,1769562281248,500.0,0.00034965,120]
[403821081,1769562282100,500.0,0.00034965,120]
[403821082,1769562282241,500.0,0.00034965,120]
[403821083,1769562285965,500.0,0.00034965,120]
[403821084,1769562285996,500.0,0.00034965,120]
[403821085,1769562288050,502.68843025,0.00034965,120]
[403821086,1769562288939,500.0,0.00034965,120]
[403821087,1769562292353,500.0,0.00034965,120]
[403821088,1769562293597,-338.62023545,0.00011711,2]
[403821089,1769562293630,-1353.12646085,0.00011711,2]
[403821090,1769562294222,500.0,0.00034965,120]
[403821091,1769562295122,500.0,0.00034965,120]
[403821092,1769562295308,500.0,0.00034965,120]
[403821093,1769562296057,500.0,0.00034965,120]
[403821094,1769562297177,500.0,0.00034965,120]
[403821095,1769562297363,500.0,0.00034965,120]
[403821096,1769562298936,500.0,0.00034965,120]
[403821097,1769562299454,500.0,0.00034965,120]
[403821098,1769562301567,500.0,0.00034965,120]
[403821099,1769562302322,500.0,0.00034965,120]
[403821100,1769562303482,500.0,0.00034965,120]
[403821101,1769562304763,500.0,0.00034965,120]
[403821102,1769562305222,500.0,0.00034965,120]
[403821103,1769562305485,500.0,0.00034965,120]
[403821104,1769562306000,500.0,0.00034965,120]
[403821105,1769562306615,500.0,0.00034965,120]
[403821106,1769562307805,500.0,0.00034965,120]
[403821107,1769562308223,500.0,0.00034965,120]
[403821108,1769562308504,500.0,0.00034965,120]
[403821109,1769562308738,503.52478909,0.00034965,120]
[403821110,1769562310052,500.0,0.00034965,120]
[403821111,1769562310960,551.72192933,0.00034965,120]
[403821112,1769562311201,500.0,0.00034965,120]
[403821113,1769562313170,500.0,0.00034965,120]
[403821114,1769562313790,500.0,0.00034965,120]
[403821115,1769562316003,500.0,0.00034965,120]
[403821116,1769562320339,500.0,0.00034965,120]
[403821117,1769562320587,178.94,0.00034965,120]
[403821118,1769562322219,500.0,0.00034965,120]
[403821119,1769562322630,500.0,0.00034965,120]
[403821120,1769562326252,500.0,0.00034965,120]
[403821121,1769562326351,500.0,0.00034965,120]
[403821122,1769562328934,617.24978994,0.00034965,120]
[403821123,1769562330013,500.0,0.00034965,120]
[403821124,1769562330250,509.77,0.00034965,120]
[403821125,1769562333594,500.0,0.00034965,120]
[403821126,1769562336703,500.0,0.00034965,120]
[403821127,1769562338515,500.0,0.00034965,120]
[403821128,1769562339150,500.0,0.00034965,120]
[403821129,1769562339554,500.0,0.00034965,120]
[403821130,1769562341454,500.0,0.00034965,120]
[403821131,1769562341623,500.0,0.00034965,120]
[403821132,1769562342703,500.0,0.00034965,120]
[403821133,1769562345994,500.0,0.00034965,120]
[403821134,1769562346420,500.0,0.00034965,120]
[403821135,1769562350099,500.0,0.00034965,120]
[403821136,1769562350497,500.0,0.00034965,120]
[403821137,1769562350784,560.98,0.00034965,120]
[403821138,1769562355881,501.7141312,0.00034965,120]
[403821139,1769562356813,500.0,0.00034965,120]
[403821140,1769562358129,500.0,0.00034965,120]
[403821141,1769562358373,500.0,0.00034965,120]
[403821143,1769562359930,500.0,0.00034965,120]
[403821144,1769562360050,500.0,0.00034965,120]
[403821145,1769562360331,500.0,0.00034965,120]
[403821146,1769562362040,500.0,0.00034965,120]
[403821147,1769562362275,500.0,0.00034965,120]
[403821148,1769562363648,500.0,0.00034965,120]
[403821149,1769562364321,500.0,0.00034965,120]
[403821150,1769562366152,500.0,0.00034965,120]
[403821151,1769562366299,500.0,0.00034965,120]
[403821152,1769562367378,500.0,0.00034965,120]
[403821153,1769562367415,395.19909628,0.00034965,120]
[403821154,1769562367958,500.0,0.00034965,120]
[403821155,1769562369830,564.92913999,0.00034965,120]
[403821156,1769562371091,500.0,0.00034965,120]
[403821157,1769562371857,500.0,0.00034965,120]
[403821158,1769562374504,340.0,0.00034965,120]
[403821159,1769562375081,500.0,0.00034965,120]
[403821160,1769562376909,500.0,0.00034965,120]
[403821161,1769562377361,500.0,0.00034965,120]
[403821162,1769562378638,500.0,0.00034965,120]
[403821163,1769562378701,500.0,0.00034965,120]
[403821164,1769562378882,500.0,0.00034965,120]
[403821165,1769562378937,500.0,0.00034965,120]
[403821166,1769562379265,500.0,0.00034965,120]
[403821167,1769562380970,500.0,0.00034965,120]
[403821168,1769562381128,500.0,0.00034965,120]
[403821169,1769562382372,500.0,0.00034965,120]
[403821170,1769562382969,500.0,0.00034965,120]
[403821171,1769562383475,500.0,0.00034965,120]
[403821172,1769562383700,500.0,0.00034965,120]
[403821173,1769562383747,500.0,0.00034965,120]
[403821174,1769562384383,500.0,0.00034965,120]
[403821175,1769562384903,500.0,0.00034965,120]
[403821176,1769562385773,500.0,0.00034965,120]
[403821177,1769562386437,500.0,0.00034965,120]
[403821178,1769562388302,500.0,0.00034965,120]
[403821179,1769562389461,500.0,0.00034965,120]
[403821180,1769562389714,500.0,0.00034965,120]
[403821181,1769562394052,500.0,0.00034965,120]
[403821182,1769562394115,500.0,0.00034965,120]
[403821183,1769562396123,500.0,0.00034965,120]
[403821184,1769562398183,211.62283602,0.00034965,120]
[403821185,1769562398664,500.0,0.00034965,120]
[403821186,1769562401008,500.0,0.00034965,120]
[403821187,1769562402403,501.67726111,0.00034965,120]
[403821189,1769562403971,500.0,0.00034965,120]
[403821190,1769562404237,500.0,0.00034965,120]
[403821191,1769562406118,500.0,0.00034965,120]
[403821192,1769562406535,500.0,0.00034965,120]
[403821193,1769562407999,500.0,0.00034965,120]
[403821194,1769562408494,500.0,0.00034965,120]
[403821195,1769562409485,500.0,0.00034965,120]
[403821196,1769562409605,520.79,0.00034965,120]
[403821197,1769562409824,500.0,0.00034965,120]
[403821198,1769562411455,500.0,0.00034965,120]
[403821199,1769562411722,500.0,0.00034965,120]
[403821200,1769562416138,540.75,0.00034965,120]
[403821201,1769562417509,500.0,0.00034965,120]
[403821202,1769562420946,500.0,0.00034965,120]
[403821203,1769562421645,500.0,0.00034965,120]
[403821204,1769562424396,500.0,0.00034965,120]
[403821205,1769562424671,500.0,0.00034965,120]
[403821206,1769562426386,500.0,0.00034965,120]
[403821207,1769562429340,500.0,0.00034965,120]
[403821208,1769562429396,500.0,0.00034965,120]
[403821209,1769562431990,500.0,0.00034965,120]
[403821210,1769562433009,527.86,0.00034965,120]
[403821211,1769562434905,500.0,0.00034965,120]
[403821212,1769562436097,500.0,0.00034965,120]
[403821213,1769562436620,500.0,0.00034965,120]
[403821214,1769562438469,500.0,0.00034965,120]
[403821215,1769562439242,500.0,0.00034965,120]
[403821216,1769562439889,500.0,0.00034965,120]
[403821217,1769562440203,500.0,0.00034965,120]
[403821218,1769562441084,500.0,0.00034965,120]
[403821219,1769562442058,500.0,0.00034965,120]
[403821220,1769562444069,500.0,0.00034965,120]
[403821221,1769562444135,500.0,0.00034965,120]
[403821222,1769562444541,500.0,0.00034965,120]
[403821223,1769562447707,500.0,0.00034965,120]
[403821224,1769562448139,500.0,0.00034965,120]
[403821225,1769562448172,500.0,0.00034965,120]
[403821226,1769562448849,543.13,0.00034965,120]
[403821227,1769562449826,500.0,0.00034965,120]
[403821228,1769562451377,500.0,0.00034965,120]
[403821229,1769562452865,500.0,0.00034965,120]
[403821230,1769562453653,500.0,0.00034965,120]
[403821231,1769562453847,500.0,0.00034965,120]
[403821232,1769562454136,500.0,0.00034965,120]
[403821233,1769562455585,500.0,0.00034965,120]
[403821234,1769562455631,507.04,0.00034965,120]
[403821235,1769562457509,500.0,0.00034965,120]
[403821236,1769562458658,500.0,0.00034965,120]
[403821237,1769562459234,500.0,0.00034965,120]
[403821238,1769562459697,578.88841811,0.00034965,120]
[403821239,1769562461631,500.0,0.00034965,120]
[403821240,1769562464634,500.0,0.00034965,120]
[403821241,1769562465548,500.0,0.00034965,120]
[403821242,1769562467987,500.0,0.00034965,120]
[403821243,1769562472058,500.0,0.00034965,120]
[403821244,1769562472103,500.0,0.00034965,120]
[403821245,1769562472436,500.0,0.00034965,120]
[403821246,1769562474323,500.0,0.00034965,120]
[403821247,1769562474674,467.87917284,0.00034965,120]
[403821248,1769562475785,543.92539641,0.00034965,120]
[403821249,1769562476340,500.0,0.00034965,120]
[403821250,1769562476469,500.0,0.00034965,120]
[403821251,1769562476732,500.0,0.00034965,120]
[403821252,1769562478668,500.56685807,0.00034965,120]
[403821253,1769562481264,500.0,0.00034965,120]
[403821254,1769562485578,500.0,0.00034965,120]
[403821255,1769562487385,500.0,0.00034965,120]
[403821256,1769562487534,517.98927943,0.00034965,120]
[403821257,1769562488289,506.2,0.00034965,120]
[403821258,1769562489455,500.0,0.00034965,120]
[403821259,1769562490998,585.39842089,0.00034965,120]
[403821260,1769562493437,500.0,0.00034965,120]
[403821261,1769562495026,562.55,0.00034965,120]
[403821262,1769562498082,561.64268846,0.00034965,120]
[403821263,1769562498855,500.0,0.00034965,120]
[403821264,1769562501743,500.0,0.00034965,120]
[403821265,1769562503446,500.0,0.00034965,120]
[403821266,1769562503533,500.0,0.00034965,120]
[403821267,1769562503640,479.32730039,0.00034965,120]
[403821268,1769562505376,500.0,0.00034965,120]
[403821269,1769562506346,500.0,0.00034965,120]
[403821270,1769562507070,500.0,0.00034965,120]
[403821271,1769562508905,500.0,0.00034965,120]
[403821272,1769562510723,500.0,0.00034965,120]
[403821273,1769562514105,500.0,0.00034965,120]
[403821274,1769562515713,500.0,0.00034965,120]
[403821275,1769562516991,500.0,0.00034965,120]
[403821276,1769562517549,500.0,0.00034965,120]
[403821277,1769562519691,500.0,0.00034965,120]
[403821278,1769562521061,500.0,0.00034965,120]
[403821279,1769562522311,500.0,0.00034965,120]
[403821280,1769562524430,500.0,0.00034996,120]
[403821281,1769562527192,500.0,0.00034996,120]
[403821282,1769562528238,500.0,0.00034996,120]
[403821283,1769562528945,500.0,0.00034996,120]
[403821284,1769562529477,500.0,0.00034996,120]
[403821285,1769562537398,500.0,0.00034996,120]
[403821286,1769562544689,500.0,0.00034996,120]
[403821290,1769562558754,500.0,0.00034996,120]
[403821291,1769562560959,248.15409776,0.00034996,120]
[403821292,1769562562254,500.0,0.00034996,120]
[403821293,1769562562821,500.0,0.00034996,120]
[403821294,1769562563055,500.0,0.00034996,120]
[403821295,1769562565490,500.0,0.00034996,120]
[403821296,1769562567381,543.32131277,0.00034996,120]
[403821297,1769562567558,500.0,0.00034996,120]
[403821298,1769562569417,500.0,0.00034996,120]
[403821299,1769562569677,500.0,0.00034996,120]
[403821300,1769562587342,500.0,0.00034996,120]
[403821301,1769562602245,316.37,0.000115,2]
[403821302,1769562616129,500.0,0.00034996,120]
[403821303,1769562616712,500.0,0.00034996,120]
[403821304,1769562621994,500.0,0.00034996,120]
[403821305,1769562622231,500.0,0.00034996,120]
[403821306,1769562624268,500.0,0.00034996,120]
[403821336,1769562632256,-316.37,0.000119,2]
[403821337,1769562632265,-589.0,0.0001196,2]
[403821338,1769562632274,-299.4324724,0.0001196,2]
[403821340,1769562632284,-300.0,0.00011976,2]
[403821341,1769562632293,-500.0,0.00011977,2]
[403821342,1769562632302,-500.0,0.00011977,2]
[403821344,1769562632311,-500.0,0.00011977,2]
[403821347,1769562632485,-500.0,0.00011977,2]
[403821348,1769562632494,-163.1959983,0.00011977,2]
[403821349,1769562632503,-7462.04455597,0.00011978,2]
[403821350,1769562632514,-17471.51922878,0.00011978,2]
[403821351,1769562632525,-386.37513093,0.00011978,2]
[403821352,1769562635963,500.0,0.00034996,120]
[403821356,1769562638461,-4680.06108432,0.00011978,2]
[403821357,1769562638476,-500.0,0.00012055,2]
[403821358,1769562638485,-200.59117545,0.00012055,2]
[403821359,1769562638494,-213.14839871,0.00012055,2]
[403821360,1769562638503,-500.0,0.00012055,2]
[403821361,1769562638512,-180.81716895,0.00012055,2]
[403821362,1769562638521,-222.35139926,0.00012055,2]
[403821363,1769562638529,-10000.01,0.00012055,2]
[403821364,1769562638538,-814.86645761,0.0001208,2]
[403821365,1769562638546,-4196.0408603,0.00012169,2]
[403821366,1769562638555,-951.2400581,0.00012169,2]
[403821367,1769562638564,-10818.5520737,0.00012169,2]
[403821368,1769562638572,-466.05621998,0.00012172,2]
[403821369,1769562638583,-151.0,0.00012173,2]
[403821371,1769562638592,-250.0,0.00012173,2]
[403821372,1769562638601,-250.0,0.00012173,2]
[403821373,1769562638610,-250.0,0.00012173,2]
[403821374,1769562638619,-553.64373807,0.00012173,2]
[403821375,1769562638627,-250.0,0.00012173,2]
[403821376,1769562638636,-2674.60743027,0.00012173,2]
[403821377,1769562638645,-250.0,0.00012173,2]
[403821378,1769562638653,-250.0,0.00012173,2]
[403821379,1769562638663,-2000.0,0.00012173,2]
[403821380,1769562638671,-250.0,0.00012173,2]
[403821381,1769562638681,-2000.0,0.00012173,2]
[403821382,1769562638690,-250.0,0.00012173,2]
[403821383,1769562638701,-2000.0,0.00012173,2]
[403821384,1769562638710,-250.0,0.00012173,2]
[403821385,1769562638720,-2000.0,0.00012173,2]
[403821386,1769562638729,-250.0,0.00012173,2]
[403821387,1769562638739,-1429.96508218,0.00012173,2]
[403821388,1769562638748,-250.0,0.00012173,2]
[403821389,1769562638757,-250.0,0.00012173,2]
[403821390,1769562638767,-151.0,0.00012173,2]
[403821391,1769562638777,-151.0,0.00012173,2]
[403821392,1769562638786,-151.0,0.00012173,2]
[403821393,1769562638795,-151.0,0.00012173,2]
[403821394,1769562638804,-668.65185757,0.00012173,2]
[403821395,1769562638813,-151.0,0.00012173,2]
[403821396,1769562638821,-151.0,0.00012173,2]
[403821397,1769562638831,-151.0,0.00012173,2]
[403821398,1769562638839,-151.0,0.00012173,2]
[403821399,1769562638848,-1957.856,0.00012173,2]
[403821400,1769562638857,-151.0,0.00012173,2]
[403821401,1769562638865,-151.0,0.00012173,2]
[403821402,1769562638874,-151.0,0.00012173,2]
[403821403,1769562638883,-201.93286099,0.00012173,2]
[403821404,1769562638891,-209.40437684,0.00012173,2]
[403821405,1769562638900,-217.15233878,0.00012173,2]
[403821406,1769562638909,-225.18697532,0.00012173,2]
[403821407,1769562638918,-500.0,0.00012173,2]
[403821408,1769562638927,-233.51889341,0.00012173,2]
[403821409,1769562638936,-500.0,0.00012173,2]
[403821410,1769562638946,-242.15909246,0.00012173,2]
[403821411,1769562638955,-500.0,0.00012173,2]
[403821412,1769562638965,-251.11897888,0.00012173,2]
[403821413,1769562638975,-500.0,0.00012173,2]
[403821414,1769562638984,-260.4103811,0.00012173,2]
[403821415,1769562638993,-500.0,0.00012173,2]
[403821416,1769562639003,-270.0455652,0.00012173,2]
[403821417,1769562639012,-500.0,0.00012173,2]
[403821418,1769562639021,-280.03725112,0.00012173,2]
[403821419,1769562639031,-500.0,0.00012173,2]
[403821420,1769562639041,-290.39862941,0.00012173,2]
[403821421,1769562639050,-500.0,0.00012173,2]
[403821422,1769562639059,-301.1433787,0.00012173,2]
[403821423,1769562639068,-500.0,0.00012173,2]
[403821424,1769562639078,-6364.14226509,0.00012179,2]
[403821425,1769562639087,-1742.8939408,0.0001218,2]
[403821426,1769562639096,-39819.4125553,0.0001218,2]
[403821427,1769562639105,-500.0,0.00012192,2]
[403821428,1769562639115,-500.0,0.00012192,2]
[403821429,1769562639124,-256.12626655,0.00012207,2]
[403821430,1769562639134,-2030.296672,0.00012228,2]
[403821431,1769562639143,-166.0,0.00012228,2]
[403821432,1769562639152,-166.0,0.00012228,2]
[403821433,1769562639161,-166.0,0.00012228,2]
[403821434,1769562639170,-166.0,0.00012228,2]
[403821435,1769562639179,-173.01288411,0.00012228,2]
[403821436,1769562639189,-162.44172824,0.00012228,2]
[403821437,1769562639197,-2105.41764886,0.00012283,2]
[403821438,1769562639206,-500.0,0.00012283,2]
[403821439,1769562639216,-419.17,0.00012293,2]
[403821440,1769562639225,-316.37,0.000123,2]
[403821441,1769562639234,-200.0,0.0001231,2]
[403821442,1769562639243,-200.0,0.0001231,2]
[403821443,1769562639253,-200.0,0.0001231,2]
[403821444,1769562639272,-200.0,0.0001231,2]
[403821445,1769562639282,-380.23630003,0.00012327,2]
[403821446,1769562639292,-300.0,0.00012328,2]
[403821447,1769562639301,-300.0,0.00012328,2]
[403821448,1769562639311,-300.0,0.00012328,2]
[403821449,1769562639320,-300.0,0.00012328,2]
[403821450,1769562639330,-300.0,0.00012328,2]
[403821451,1769562639340,-300.0,0.00012328,2]
[403821452,1769562639351,-300.0,0.00012328,2]
[403821453,1769562639360,-300.0,0.00012328,2]
[403821454,1769562639371,-300.0,0.00012328,2]
[403821455,1769562639380,-300.0,0.00012328,2]
[403821456,1769562639390,-300.0,0.00012328,2]
[403821457,1769562639399,-300.0,0.00012328,2]
[403821458,1769562639409,-300.0,0.00012328,2]
[403821459,1769562639418,-300.0,0.00012328,2]
[403821460,1769562639427,-300.0,0.00012328,2]
[403821462,1769562639437,-155.131,0.00012328,2]
[403821464,1769562639447,-151.0,0.00012328,2]
[403821465,1769562639456,-151.0,0.00012328,2]
[403821467,1769562639465,-312.43,0.00012329,2]
[403821469,1769562639476,-1822.52,0.00012329,2]
[403821470,1769562639485,-1518.77,0.00012329,2]
[403821472,1769562639495,-1265.64,0.00012329,2]
[403821474,1769562639504,-1054.7,0.00012329,2]
[403821475,1769562639514,-878.92,0.00012329,2]
[403821476,1769562639523,-732.43,0.00012329,2]
[403821477,1769562639533,-610.36,0.00012329,2]
[403821478,1769562639542,-508.63,0.00012329,2]
[403821479,1769562639551,-423.86,0.00012329,2]
[403821480,1769562639560,-353.22,0.00012329,2]
[403821481,1769562639570,-294.35,0.00012329,2]
[403821482,1769562639579,-245.29,0.00012329,2]
[403821483,1769562639588,-204.41,0.00012329,2]
[403821484,1769562639597,-170.34,0.00012329,2]
[403821485,1769562639606,-851.73,0.00012329,2]
[403821486,1769562639615,-500.0,0.00012329,2]
[403821487,1769562639625,-500.0,0.00012329,2]
[403821488,1769562639635,-151.0,0.00012329,2]
[403821489,1769562639644,-151.0,0.00012329,2]
[403821490,1769562639653,-151.0,0.00012329,2]
[403821491,1769562639663,-151.0,0.00012329,2]
[403821492,1769562639672,-2183.31810187,0.00012338,2]
[403821493,1769562639682,-2264.10087164,0.00012393,2]
[403821494,1769562639692,-151.0,0.00012393,2]
[403821495,1769562639705,-151.0,0.00012393,2]
[403821496,1769562639715,-380.31843811,0.00012448,2]
[403821497,1769562639725,-450.0,0.00012466,2]
[403821498,1769562639735,-969.810856,0.00012486,2]
[403821499,1769562639745,-151.0,0.000125,2]
[403821500,1769562639754,-151.0,0.00012525,2]
[403821501,1769562639768,-151.0,0.00012525,2]
[403821502,1769562639780,-235.41018,0.00012525,2]
[403821503,1769562639790,-31110.0,0.00012526,2]
[403821504,1769562639801,-151.0,0.00012576,2]
[403821505,1769562639811,-151.0,0.00012576,2]
[403821506,1769562639825,-151.0,0.00012584,2]
[403821507,1769562639835,-151.0,0.00012584,2]
[403821508,1769562639845,-151.0,0.00012584,2]
[403821509,1769562639856,-151.0,0.00012584,2]
[403821510,1769562639866,-151.0,0.00012584,2]
[403821511,1769562639876,-316.37,0.000126,2]
[403821512,1769562639886,-574.12855637,0.00012721,2]
[403821513,1769562639896,-2773.56790519,0.00012721,2]
[403821514,1769562639906,-192.78017988,0.00012721,2]
[403821515,1769562639915,-305.5287645,0.0001274,2]
[403821516,1769562639925,-913.78864834,0.00012752,2]
[403821517,1769562639935,-151.0,0.00012804,2]
[403821518,1769562639946,-151.0,0.00012804,2]
[403821519,1769562639955,-603.8665126,0.00012822,2]
[403821520,1769562639965,-603.8665126,0.00012822,2]
[403821521,1769562639975,-603.8665126,0.00012822,2]
[403821522,1769562639987,-603.8665126,0.00012822,2]
[403821523,1769562639999,-603.8665126,0.00012822,2]
[403821524,1769562640008,-603.8665126,0.00012822,2]
[403821525,1769562640018,-603.8665126,0.00012822,2]
[403821526,1769562640028,-341.77415521,0.00012863,2]
[403821527,1769562640037,-1922.9389351,0.00012888,2]
[403821528,1769562640046,-600.0,0.00012965,2]
[403821529,1769562640056,-378.6421674,0.00012986,2]
[403821530,1769562640065,-382.9289698,0.00012986,2]
[403821531,1769562640076,-378.6421674,0.00012986,2]
[403821532,1769562640087,-378.6421674,0.00012986,2]
[403821533,1769562640097,-316.37,0.00013,2]
[403821534,1769562640109,-969.810856,0.00013012,2]
[403821535,1769562640119,-151.0,0.00013012,2]
[403821536,1769562640128,-163.953478,0.00013032,2]
[403821537,1769562640138,-32261.07,0.00013074,2]
[403821539,1769562640148,-151.0,0.00013132,2]
[403821540,1769562640157,-151.0,0.00013132,2]
[403821541,1769562640166,-300.0,0.00013147,2]
[403821542,1769562640176,-2720.79328261,0.00013173,2]
[403821543,1769562640185,-151.0,0.000132,2]
[403821544,1769562640195,-595.37131296,0.00013269,2]
[403821545,1769562640204,-2876.18991768,0.00013269,2]
[403821546,1769562640215,-440.24648614,0.00013273,2]
[403821547,1769562640225,-500.0,0.00013273,2]
[403821548,1769562640235,-514.72967011,0.00013273,2]
[403821549,1769562640245,-500.0,0.00013273,2]
[403821550,1769562640255,-500.0,0.00013273,2]
[403821551,1769562640265,-500.0,0.00013273,2]
[403821552,1769562640276,-500.0,0.00013273,2]
[403821553,1769562640285,-500.0,0.00013273,2]
[403821554,1769562640294,-500.0,0.00013273,2]
[403821555,1769562640304,-500.0,0.00013273,2]
[403821557,1769562640313,-500.0,0.00013273,2]
[403821558,1769562640322,-371.72602306,0.00013273,2]
[403821560,1769562640331,-500.0,0.00013273,2]
[403821562,1769562640339,-152.24497321,0.00013273,2]
[403821564,1769562640348,-500.0,0.00013273,2]
[403821566,1769562640357,-500.66101042,0.00013273,2]
[403821569,1769562640367,-500.0,0.00013273,2]
[403821571,1769562640376,-211.19262753,0.00013273,2]
[403821573,1769562640385,-500.0,0.00013273,2]
[403821575,1769562640394,-500.0,0.00013273,2]
[403821576,1769562640403,-500.0,0.00013273,2]
[403821579,1769562640412,-500.0,0.00013273,2]
[403821581,1769562640421,-500.0,0.00013273,2]
[403821583,1769562640430,-500.0,0.00013273,2]
[403821585,1769562640441,-500.0,0.00013273,2]
[403821587,1769562640450,-500.0,0.00013273,2]
[403821589,1769562640459,-158.06423794,0.00013273,2]
[403821591,1769562640468,-500.0,0.00013273,2]
[403821593,1769562640477,-214.90304718,0.00013273,2]
[403821595,1769562640486,-500.0,0.00013273,2]
[403821597,1769562640495,-500.0,0.00013273,2]
[403821599,1769562640504,-186.59987911,0.00013273,2]
[403821601,1769562640513,-316.37,0.000134,2]
[403821603,1769562640523,-951.2400581,0.00013448,2]
[403821605,1769562640531,-969.810856,0.00013537,2]
[403821607,1769562640541,-33454.72959,0.00013622,2]
[403821609,1769562640549,-300.0,0.00013673,2]
[403821611,1769562640559,-500.0,0.00013698,2]
[403821613,1769562640568,-500.0,0.00013698,2]
[403821615,1769562640577,-601.75713385,0.00013698,2]
[403821617,1769562640586,-500.0,0.00013698,2]
[403821619,1769562640595,-500.0,0.00013698,2]
[403821621,1769562640604,-500.0,0.00013698,2]
[403821623,1769562640614,-500.0,0.00013698,2]
[403821625,1769562640623,-500.0,0.00013698,2]
[403821627,1769562640631,-500.0,0.00013698,2]
[403821629,1769562640640,-500.0,0.00013698,2]
[403821631,1769562640650,-500.0,0.00013698,2]
[403821633,1769562640659,-500.0,0.00013698,2]
[403821635,1769562640668,-500.0,0.00013698,2]
[403821637,1769562640677,-500.0,0.00013698,2]
[403821639,1769562640689,-270.65,0.00013698,2]